Cogmind - Beta 15 @@@ ROGUE MODE // 2025.10.08 @ 14:22:10 Player: rapskalian Result: Destroyed by as-40542 with Assembled Heavy Rifle Performance ------------- Evolutions (1) 500 Regions Visited (3) 600 Robots Destroyed (32) 160 Value Destroyed (674) 674 Prototype IDs (6) 120 Alien Tech Used (0) 0 Bonus (0) 0 TOTAL SCORE: 2054 Bonus ------- None Cogmind --------- Core Integrity 0/400 Matter 223/300 Energy 100/100 System Corruption 1% Temperature Cool (0) Movement Core (1350) Ox26 Location -9/Mines Parts ------- > --- POWER (1) -------- (None) > --- PROPULSION (4) --- (None) > --- UTILITY (2) ------ Huge Storage Unit > --- WEAPON (2) ------- (None) > --- INVENTORY (25) --- Light Ion Engine Improved Ion Engine Aluminum Leg Aluminum Leg Heat Sink Disposable Heat Sink Weight Redist. System Visual Processing Unit Improved Terrain Scanner Seismic Detector Transport Network Coupler Light Armor Plating Improved Medium Laser Improved Medium Laser EM Pulse Cannon EM Pulse Cannon Faulty Improved Assault Rifle Improved Assault Rifle High-powered Shotgun Datajack Mining Laser Peak State ------------ > --- POWER ------------ Heavy Ion Engine > --- PROPULSION ------- Light Treads Light Treads Light Treads Compact Wheel > --- UTILITY ---------- Huge Storage Unit Medium Armor Plating > --- WEAPON ----------- Improved Assault Rifle High-powered Shotgun > --- INVENTORY -------- Ion Engine Light Ion Engine Deuterium Engine Aluminum Leg Aluminum Leg Disposable Heat Sink Weight Redist. System Visual Processing Unit Improved Terrain Scanner Seismic Detector Transport Network Coupler Light Armor Plating Improved Medium Laser Improved Medium Laser EM Pulse Cannon EM Pulse Cannon Improved Assault Rifle High-powered Shotgun High-powered Shotgun High-powered Shotgun Datajack [Rating: 20] Favorites ----------- Power Heavy Ion Engine Engine Heavy Ion Engine Propulsion Light Treads Treads Light Treads Leg Aluminum Leg Wheel Compact Wheel Utility Huge Storage Unit Device Sensor Array Storage Huge Storage Unit Processor Targeting Computer Protection Medium Armor Plating Weapon High-powered Shotgun Energy Gun Medium Laser Ballistic Gun High-powered Shotgun Special Melee Weapon Datajack Build | -11 -10 -9 -9 ------- Run | Yrd Mat Mat Min Slots Evolved 2 | . . 2 . Power . | . . . . Propulsion 2 | . . 2 . Utility . | . . . . Weapon . | . . . . Parts Attached 36 | 7 17 10 2 Power 6 | 1 3 2 . Engine 6 | 1 3 2 . Core . | . . . . Reactor . | . . . . Propulsion 9 | 2 6 1 . Treads 3 | . 2 1 . Leg 4 | 2 2 . . Wheel 2 | . 2 . . Hover . | . . . . Flight . | . . . . Utility 8 | 2 5 1 . Device 2 | 1 1 . . Storage 4 | 1 3 . . Processor 1 | . 1 . . Hackware . | . . . . Protection 1 | . . 1 . Artifact . | . . . . Weapon 13 | 2 3 6 2 Energy Gun 3 | . 1 2 . Energy Cannon . | . . . . Ballistic Gun 9 | 2 1 4 2 Ballistic Cannon . | . . . . Launcher . | . . . . Special Weapon . | . . . . Impact Weapon . | . . . . Slashing Weapon . | . . . . Piercing Weapon . | . . . . Special Melee Weapon 1 | . 1 . . Unidentified Prototypes 1 | . . 1 . Parts Lost 11 | . . 1 10 Power 2 | . . . 2 Propulsion 5 | . . 1 4 Utility 1 | . . . 1 Weapon 3 | . . . 3 Highest Loss Streak 10 | . . 1 10 To Critical Strikes . | . . . . Average Backups 17 | 3 9 21 22 Power 2 | . . 2 2 Propulsion 3 | 2 4 3 2 Utility 6 | . 3 7 8 Weapon 5 | . 1 6 8 Tool/Special . | . . . . Unused Backups 15 | . 1 1 13 Power 2 | . 1 . 1 Propulsion . | . . . . Utility 7 | . . . 7 Weapon 6 | . . 1 5 Tool/Special . | . . . . Average Slot Usage (%) 88 | . 92 85 93 Engine 11 | . 14 11 9 Treads 14 | . 7 13 30 Leg 4 | . 15 . . Wheel 11 | . 4 16 9 Storage 12 | . 15 11 11 Processor 4 | . 6 5 . Protection 4 | . . 5 9 Energy Gun 3 | . 4 3 . Ballistic Gun 18 | . 17 18 22 Peak Build Rating 20 | 7 8 20 20 Average Rating 13 | 5 7 16 19 On Entrance 8 | . 7 8 20 Naked Turns . | . . . . Heaviest Build 101 | 12 88 101 101 Greatest Support 60 | 20 40 60 40 Greatest Overweight (x) 6 | . 3 6 4 Average Overweight (x) 2 | . 1 3 2 Largest Inventory Capacity 25 | 8 25 25 25 Average Capacity 21 | 6 15 25 25 Most Carried 25 | 7 13 25 23 Average Carried 17 | 4 9 21 22 Final Capacity 25 | 8 25 25 25 Final Carried 22 | 7 13 22 21 Class Distribution -------------------- 100% | Mutant Dominant Class ---------------- Mutant | -10/Materials Mutant | -9/Materials Mutant | -9/Mines Resources | -11 -10 -9 -9 ----------- Run | Yrd Mat Mat Min Matter Collected 985 | 290 288 373 34 Remotely . | . . . . Salvage Created 1124 | 101 370 590 63 Parts 63 | 2 23 37 1 Haulers Intercepted 3 | . 1 2 . Recyclers Shooed 2 | . 1 . 1 Parts Field Recycled . | . . . . Retrieved Matter . | . . . . Parts Self-Destructed . | . . . . Prevented . | . . . . Kills | -11 -10 -9 -9 ------- Run | Yrd Mat Mat Min Combat Hostiles Destroyed 27 | . 8 14 5 Guns 27 | . 8 14 5 Classes Destroyed 9 | 2 4 2 1 Worker 1 | . 1 . . Tunneler 2 | 1 . . 1 Hauler 3 | . 1 2 . Recycler 2 | 1 1 . . Watcher 2 | . . 2 . Swarmer 8 | . 4 4 . Grunt 11 | . 4 7 . Sentry 3 | . . 3 . Assembled 5 | . . . 5 Best Kill Streak 5 | 1 3 3 5 Combat Bots Only 5 | . 3 3 5 Max Kills in Single Turn 1 | 1 1 1 1 Gunslinging . | . . . . Exploded . | . . . . Melee . | . . . . Uniques/NPCs Destroyed . | . . . . Combat | -11 -10 -9 -9 -------- Run | Yrd Mat Mat Min Hostile Shots Fired 244 | . 76 51 117 Missed 69 | . 27 14 28 Hits 175 | . 49 37 89 Melee 8 | . . . 8 Projectile 167 | . 49 37 81 Critical Strikes 1 | . . . 1 Part Disruptions 1 | . 1 . . Damage Taken 2277 | . 455 457 1365 Core 472 | . 71 105 296 Absorbed by Shields . | . . . . Regen/Repaired (Parts) 278 | . . 278 . Core Remaining (%) 85 | 100 71 . . Volleys Fired 126 | 5 71 35 15 Largest 2 | 2 2 2 2 Hottest 81 | 40 70 81 50 Shots Fired 191 | 10 82 70 29 Gun 191 | 10 82 70 29 Cannon . | . . . . Launcher . | . . . . Special . | . . . . Kinetic 188 | 10 80 69 29 Thermal 3 | . 2 1 . Explosive . | . . . . Electromagnetic . | . . . . Robot Hit Streak 17 | 4 10 17 7 Robot Miss Streak 6 | 3 4 2 6 Penetration Max . | . . . . Secondary Targets 3 | . 1 . 2 Max Gunslinging Chain 1 | . 1 . 1 Shots Hit Robots 131 | 6 52 53 20 Core Hits 64 | 2 21 26 15 Critical Kills . | . . . . Critical Parts Destroyed 2 | . 1 1 . Critical Strikes 3 | . 2 1 . Burn 1 | . 1 . . Destroy 2 | . 1 1 . Melee Attacks 1 | . 1 . . Impact . | . . . . Slashing . | . . . . Piercing . | . . . . Sneak Attacks 1 | . 1 . . Combat Hostiles . | . . . . Follow-up Attacks . | . . . . Damage Inflicted 1932 | 56 477 1023 376 Guns 1812 | 56 432 972 352 Cannons . | . . . . Explosions 45 | . 45 . . Melee . | . . . . Ramming 75 | . . 51 24 Kinetic 1782 | 56 420 954 352 Thermal 30 | . 12 18 . Explosive . | . . . . Electromagnetic 45 | . 45 . . Impact . | . . . . Slashing . | . . . . Piercing . | . . . . Highest Corruption 1 | . 1 . 1 Average Corruption 1 | . 1 . 1 Corruption Purged . | . . . . Corruption Blocked . | . . . . Effects 2 | . 2 . . Heat Flow Errors 1 | . 1 . . Energy Discharges 1 | . 1 . . Overload Shots . | . . . . Overflow Damage 2 | . . 2 . Projectiles . | . . . . Explosions . | . . . . Melee 2 | . . 2 . Knockbacks 1 | . . . 1 Impact 1 | . . . 1 Kinetic . | . . . . Secondary . | . . . . Self-Inflicted Damage 47 | . 22 25 . Shots 1 | . 1 . . Rammed 5 | . . 3 2 Targets Rammed 5 | . . 3 2 Kicked . | . . . . Crushed . | . . . . Highest Temperature 277 | . 277 15 94 Average Temperature 46 | . 72 4 47 Received Heat Transfer 746 | . 78 168 500 Siege Activations . | . . . . Martial Activations . | . . . . Shielding Activations . | . . . . Robots Disrupted . | . . . . Combat Hostiles . | . . . . Robots Corrupted . | . . . . Combat Hostiles . | . . . . Parts Fried . | . . . . Impact Corruptions 1 | . . 1 . Robots Melted . | . . . . Combat Hostiles . | . . . . Parts Melted . | . . . . Heat Transferred 148 | . 111 37 . Parts Sabotaged . | . . . . Parts Stolen . | . . . . Parts Stripped . | . . . . Power Chain Reactions 1 | . 1 . . Alert | -11 -10 -9 -9 ------- Run | Yrd Mat Mat Min Maximum Alert Level 1 | . . 1 . Low Security (%) 81 | 100 100 63 100 Level 1 18 | . . 36 . Level 2 . | . . . . Level 3 . | . . . . Level 4 . | . . . . Level 5 . | . . . . High Security . | . . . . Max Security . | . . . . Peak Influence 286 | 5 120 286 92 Initial 87 | . . 16 87 Average 78 | 1 59 109 31 Influence Increases 760 | 10 277 468 5 Destroy 0b10 Robot/C 440 | . 160 280 . Destroy 0b10 Robot/NC 50 | 10 15 20 5 Destroy Leader 110 | . 32 78 . Successful Hack 18 | . 9 9 . Disable Machine 30 | . 30 . . Destroy Structure 7 | . 1 6 . Lose Combat Pursuer 105 | . 30 75 . Influence Decreases 760 | 10 237 282 231 Entered New Map 163 | . . 24 139 Time Decay 587 | 10 237 248 92 Lost Part 10 | . . 10 . Squads Dispatched 5 | . 1 4 . Investigation 4 | . 1 3 . Extermination . | . . . . Reinforcement 1 | . . 1 . Assault . | . . . . Garrison . | . . . . Intercept . | . . . . Searches Triggered . | . . . . Construction Impeded . | . . . . Haulers Reinforced . | . . . . Active Scanning Responses . | . . . . Cargo Convoy Interrupts . | . . . . Stealth | -11 -10 -9 -9 --------- Run | Yrd Mat Mat Min Distress Signals 4 | . 2 2 . Communications Jammed . | . . . . Distress Signals . | . . . . Times Spotted 53 | . 15 24 14 Peak Tracking Total 14 | . 4 7 14 Tactical Retreats 5 | . 1 4 . Traps | -11 -10 -9 -9 ------- Run | Yrd Mat Mat Min Traps Triggered 1 | . . 1 . Indirectly . | . . . . Trap Hack Attempts . | . . . . Triggered . | . . . . Disarmed . | . . . . Reprogrammed . | . . . . Reused . | . . . . Traps Extracted . | . . . . Installed . | . . . . Triggered . | . . . . Machines | -11 -10 -9 -9 ---------- Run | Yrd Mat Mat Min Machines Disabled 2 | . 2 . . Max in Single Turn 2 | . 2 . . Machines Repaired . | . . . . Machines Dismantled . | . . . . Machines Sabotaged . | . . . . Overloaded Fab Kills . | . . . . Hacking | -11 -10 -9 -9 --------- Run | Yrd Mat Mat Min Machines Accessed 6 | . 2 4 . Terminals 5 | . 2 3 . Fabricators . | . . . . Repair Stations 1 | . . 1 . Recycling Units . | . . . . Scanalyzers . | . . . . Garrison Access . | . . . . Total Hacks 26 | . 6 20 . Successful 17 | . 4 13 . Failed 9 | . 2 7 . Catastrophic 2 | . . 2 . Database Lockouts . | . . . . Manual 2 | . . 2 . Terminals 16 | . 6 10 . Fabricators . | . . . . Repair Stations 10 | . . 10 . Recycling Units . | . . . . Scanalyzers . | . . . . Garrison Access . | . . . . Terminal Hacks 10 | . 4 6 . Robot Analysis 2 | . . 2 . Prototype ID Bank 3 | . 2 1 . Emergency Access Points 1 | . . 1 . Locate Traps 1 | . 1 . . Dispatch Records 1 | . . 1 . Maintenance Status 1 | . 1 . . Transport Status 1 | . . 1 . Fabricator Hacks . | . . . . Repair Station Hacks 7 | . . 7 . Scan Component 4 | . . 4 . Repair 3 | . . 3 . Recycling Unit Hacks . | . . . . Scanalyzer . | . . . . Garrison Access Hacks . | . . . . Unauthorized Hacks . | . . . . Terminals . | . . . . Fabricators . | . . . . Repair Stations . | . . . . Recycling Units . | . . . . Scanalyzers . | . . . . Garrison Access . | . . . . Data Cores Recovered . | . . . . Used . | . . . . Hacking Detections 5 | . 2 3 . Full Trace Events 4 | . 2 2 . Feedback Events . | . . . . Feedback Blocked . | . . . . Robot Schematics Acquired . | . . . . Robots Built . | . . . . Authchips . | . . . . Time . | . . . . Total Robot Build Rating . | . . . . Part Schematics Acquired . | . . . . Parts Built . | . . . . Authchips . | . . . . Time . | . . . . Total Part Build Rating . | . . . . Parts Repaired 3 | . . 3 . Time 84 | . . 84 . Parts Recycled . | . . . . Recycled Matter . | . . . . Retrieved Matter . | . . . . Retrieved Components . | . . . . Parts Scanalyzed . | . . . . Part Schematics Acquired . | . . . . Parts Damaged . | . . . . Bothacking | -11 -10 -9 -9 ------------ Run | Yrd Mat Mat Min Used RIF Installer . | . . . . Robots Hacked 1 | . 1 . . Non-combat 1 | . 1 . . Combat . | . . . . Robot Hacks Applied 1 | . 1 . . no_distress 1 | . 1 . . Relay Couplers Released . | . . . . Fabnet Peak Effective % . | . . . . Robots Rewired . | . . . . Allies Hacked . | . . . . Hacks Repelled . | . . . . Allies | -11 -10 -9 -9 -------- Run | Yrd Mat Mat Min Total Allies 1 | . . . 1 Largest Group 1 | . . . 1 Highest-Rated Group 31 | . . . 31 Highest-Rated Ally 31 | . . . 31 Total Orders . | . . . . Ally Attacks 5 | . . . 5 Total Damage 65 | . . . 65 Kills 1 | . . . 1 Allies Corrupted . | . . . . Allies Melted . | . . . . Intel | -11 -10 -9 -9 ------- Run | Yrd Mat Mat Min Active Infowar (turns) 97 | 9 88 . . Sensors 80 | . 80 . . Seismic 17 | 9 8 . . Robot Analysis Total 2 | . . 2 . Derelict Logs Recovered . | . . . . Drone Launches . | . . . . Drone Recoveries . | . . . . Exploration | -11 -10 -9 -9 ------------- Run | Yrd Mat Mat Min Turns Passed 1985 | 82 601 1008 294 Spaces Moved 773 | 47 275 377 74 Core 9 | 9 . . . Treads 227 | . 36 117 74 Legs 208 | 38 170 . . Wheels 329 | . 69 260 . Hover . | . . . . Flight . | . . . . Fastest Speed 50 | 50 120 135 320 Average Speed 188 | 106 149 199 322 Slowest Speed 480 | 120 320 320 480 Overloaded Moves . | . . . . Propulsion Burnouts . | . . . . Robots Hopped . | . . . . Potential Cave-ins . | . . . . Cave-ins Triggered . | . . . . Exploration Rate (%) 22 | 5 40 29 15 Regions Visited 3 Branch Regions 1 Pre-discovered Areas . | . . . . Known Exits Taken . | . . . . Unknown Exits Taken 3 | 1 1 1 . Scrap Searched . | . . . . Spaces Dug . | . . . . Terrain Destroyed . | . . . . Melee . | . . . . Projectile . | . . . . AOE . | . . . . Terrain Rammed . | . . . . Walls Destroyed . | . . . . Machines Disabled . | . . . . Actions | -11 -10 -9 -9 --------- Run | Yrd Mat Mat Min Total 1118 | 66 397 560 95 Wait 118 | 1 14 103 . Move 770 | 46 274 376 74 Hop . | . . . . Pick Up 28 | 7 4 16 1 Fast Attach 18 | 7 6 5 . Attach 5 | . 1 2 2 Detach 4 | . 3 1 . Swap 23 | . 12 10 1 Drop 20 | . 11 9 . Fire 126 | 5 71 35 15 Melee 1 | . 1 . . Ram 3 | . . 3 . Kick . | . . . . Crush 2 | . . . 2 Escape Stasis . | . . . . Rewire . | . . . . Trap . | . . . . Miscellaneous . | . . . . Route ------- -11/Scrapyard -10/Materials -9/Materials -9/Mines History --------- Turn | Location | Event 9 | -11/Scrapyard | Discovered new exit (range 14) 83 | -11/Scrapyard | Entered Materials 262 | -10/Materials | Discovered new exit (range 15) 315 | -10/Materials | Build established: Mutant 684 | -10/Materials | Entered another Materials area 684 | -9/Materials | Evolved 2 slots: Propulsion x2 1507 | -9/Materials | Repaired Med. Armor Plating 1545 | -9/Materials | Repaired Lgt. Treads 1572 | -9/Materials | Repaired Lgt. Treads 1676 | -9/Materials | Discovered new exit (range 6) 1692 | -9/Materials | Entered Mines 1730 | -9/Mines | Received a Mining Laser from a helpful Derelict 1915 | -9/Mines | Assembled infested the area 1964 | -9/Mines | Core integrity fell below 50% 1981 | -9/Mines | Core integrity fell below 20% 1986 | -9/Mines | Destroyed by as-40542 with Assembled Heavy Rifle Last Messages --------------- 01944_ as-06364 destroyed. 01946_ Critical hit (Burn: +80). 01949_ Med. Armor Plating destroyed. 01949_ Hvy. Ion Engine destroyed. 01951_ Hpw. Shotgun destroyed. 01957_ as-49072 destroyed. 01957_ Switching to secondary target: as-27245. 01958_ Acquired 2 matter. 01958_ Broken Lgt. Treads destroyed. 01960_ as-93593 destroyed. 01961_ as-93845 destroyed. 01964_ Lgt. Treads destroyed. 01968_ Deuterium Engine destroyed. 01969_ as-84962 destroyed. 01969_ Switching to secondary target: as-27245. 01970_ Acquired 11 matter. 01970_ as-97197 destroyed. 01977_ as-27245 destroyed. 01978_ Lgt. Treads destroyed. 01983_ Hpw. Shotgun destroyed. Map ----- +----------------------------------------------------+ | ??????????????????????????????????????????????? | | ??????????????????????????????????????????????? | | ??????????????????????????????????????????????? | | ??????????????????????????????????????????????? | | ??????????????????????????????????????????????? | | ??????????????????????????????????????????????? | | ???????????????????????????????????????####???? | | ??????????????????????????????????????? #???? | | ???????????????????????????##??????????# #???? | | ?????????????????????????? ?????????# #???? | | ?????????????????????????? ????????# #???? | | ????????????????????????? ???????# #???? | | ????????????????????????? ??????# #???? | | ????????????????????????? ?????# #???? | | ????????????????????????? #????# #???? | | ???????????????????????????? #???# #???? | | ???????????????????????????????# #### ##??? | | ????????????????????????????????# ##?? | | ????????????????????????????????## = #?? | | ?????????????????????????????????##### # #? | | ?????????????????????????????????????# ## #? | | ??????????????????????????????######## ### ##? | | ??????#???????????#####???????# #?####?? | | ??? ## ######### ##??????# ###### ##?????? | | ?? =a a %######## #???## ##????? | | ?? !%[ a %%a@ #??## #????? | | ???????# % #############?## #????? | | ???????## ##?????????????# #????? | | ????????#### ####??????????????# ##????? | | ???????????## #??????????????????# ###?????? | | ????????????###??????????????????## ##???????? | | ????????????????????????????????## ##???????? | | ???????????????????????????????## #???????? | | ???????????????????????????????# #???????? | | ??????????????????????????????## ##???????? | | ?????????????????????????????## ####????????? | | ????????????????????????????## ##???????????? | | ????????????????????????????# ##????????????? | | ????????????????????????????# ##?????????????? | | ????????????????????????????####??????????????? | | ??????????????????????????????????????????????? | | ??????????????????????????????????????????????? | | ??????????????????????????????????????????????? | | ??????????????????????????????????????????????? | | ??????????????????????????????????????????????? | | ??????????????????????????????????????????????? | | ??????????????????????????????????????????????? | | ??????????????????????????????????????????????? | | ??????????????????????????????????????????????? | | | +----------------------------------------------------+ Best States ------------- Heat Dissipation 28 Energy Generation 14 Energy Capacity 280 Matter Stores 300 Matter Capacity 300 Sight Range 16 Robot Scan Range 14 Terrain Scan Density 10 Armor Coverage 225 Evasion (%) 55 Targeting Accuracy 5 Recoil Reduction 3 Item Schematics ----------------- None Robot Schematics ------------------ None Fabricated ------------ Nothing Repaired ---------- Med. Armor Plating | 3% | -9/Materials Lgt. Treads | 37% | -9/Materials Lgt. Treads | 46% | -9/Materials Alien Tech Used ----------------- None Achievements -------------- None Challenges ------------ None Game ------ Seed RelayEnergyWell Manual? 0 Play Time 00:21:29 Cumulative 27.1 hours Start 2025.10.08 @ 14:03:03 End 2025.10.08 @ 14:22:10 Sessions 1 Manual Loads 0 Difficulty Rogue Special Mode None Game No. 23 Rogue 23 Adventurer 0 Explorer 0 Win Type - Total 0 Types 0/0/0/0/0/0/0/0/0/0 Lore% 11 Gallery% 27 Achievement% 18 Wizard Run 0 Options --------- Layout 0 ASCII 0 Keyboard 1 Movement Numpad Keybinds 0 Fullscreen 1 Font 24/Smallcaps Map View 76x50 Zoom Use 0% Tactical HUD 1 Map Filters NONE Filters NONE Steam 1 RUN: 7b95b568-1931-417c-9e4f-9b089d698ea4